bitfinex-derivatives/quotes_SOLF0:USTF0_20241218
["timestamp","ask_amount","ask_price","bid_price","bid_amount"]
[1734515352608,190.3164097,217.25,217.14,7.17540774]
[1734515352799,7.17540774,217.21,217.14,7.17540774]
[1734515352997,7.17540774,217.19,217.17,2.3028]
[1734515353205,7.17540774,217.19,217.15,1.4548]
[1734515354102,2.3023,217.22,217.16,2.303]
[1734515354304,7.17540774,217.2,217.16,2.303]
[1734515358006,7.17540774,217.2,217.15,1.4548]
[1734515358007,7.17540774,217.18,217.15,1.4548]
[1734515358203,7.17540774,217.18,217.13,2.3033]
[1734515358407,7.17540774,217.18,217.1,12.38130774]
[1734515358810,9.47820774,217.18,217.1,12.38130774]
[1734515359206,9.47820774,217.18,217.13,2.3032]
[1734515361114,9.47820774,217.18,217.14,2.3032]
[1734515362109,2.3028,217.18,217.14,2.3032]
[1734515362512,9.47820774,217.18,217.13,2.3033]
[1734515364919,2.3028,217.18,217.13,2.3033]
[1734515366315,9.27540774,217.19,217.13,2.3033]
[1734515366316,2.3029,217.17,217.13,2.3033]
[1734515370021,9.27540774,217.19,217.11,7.17540774]
[1734515370320,2.3028,217.18,217.14,7.16596354]
[1734515370525,2.3028,217.18,217.14,2.3031]
[1734515370827,2.3028,217.18,217.15,4.8627955]
[1734515371026,2.3028,217.18,217.16,4.8627955]
[1734515371323,2.3028,217.18,217.14,2.3031]
[1734515371624,2.3028,217.18,217.15,7.16587519]
[1734515371825,2.1,217.19,217.13,7.17540774]
[1734515372129,2.1,217.19,217.14,4.86281456]
[1734515372425,2.1,217.19,217.15,4.86281456]
[1734515372927,9.27540774,217.2,217.13,7.17540774]
[1734515373122,9.27540774,217.2,217.14,8.39030709]
[1734515373321,9.27540774,217.2,217.13,7.17540774]
[1734515373322,9.27540774,217.2,217.15,4.86240301]
[1734515373522,2.3026,217.19,217.16,2.3029]
[1734515373718,2.3026,217.19,217.16,7.16530301]
[1734515373923,2.3026,217.19,217.17,4.86240301]
[1734515374323,2.3026,217.19,217.16,2.3029]
[1734515374927,190.3164097,217.24,217.16,7.17540774]
[1734515375124,2.1,217.24,217.17,4.86191285]
[1734515375427,2.1,217.24,217.12,2.1]
[1734515375428,4.4022,217.24,217.21,2.3023]
[1734515375630,4.4022,217.24,217.18,12.03732059]
[1734515375927,4.4022,217.24,217.19,4.86191285]
[1734515376227,2.3022,217.24,217.18,7.17540774]
[1734515376629,2.302,217.25,217.22,2.3023]
[1734515377227,9.47730774,217.26,217.23,2.3022]
[1734515378126,9.47730774,217.26,217.22,2.3023]
[1734515378127,2.302,217.25,217.22,2.3023]
[1734515378324,7.17540774,217.24,217.19,1.5153]
[1734515379428,2.3022,217.23,217.2,2.3025]
[1734515381825,9.47780774,217.22,217.19,2.3026]
[1734515382331,2.3024,217.22,217.19,2.3026]
[1734515382932,2.1,217.23,217.15,7.17540774]
[1734515383233,2.1,217.23,217.17,7.17540774]
[1734515383431,2.1,217.23,217.18,4.85824501]
[1734515383735,2.1,217.23,217.19,4.85824501]
[1734515383933,2.1,217.23,217.2,4.85824501]
[1734515384138,2.1,217.23,217.2,2.3025]
[1734515385335,2.1,217.23,217.21,2.3024]
[1734515387636,9.27540774,217.27,217.19,7.17540774]
[1734515387835,7.17540774,217.27,217.19,7.17540774]
[1734515388038,7.17540774,217.27,217.2,1.4501]
[1734515388236,2.3019,217.26,217.22,2.3023]
[1734515390540,7.17540774,217.25,217.22,2.3023]
[1734515390742,9.47740774,217.25,217.22,2.3023]
[1734515391243,2.302,217.25,217.22,2.3023]
[1734515391541,2.3019,217.26,217.23,2.3021]
[1734515393538,2.302,217.25,217.23,2.3021]
[1734515393742,2.302,217.25,217.22,2.3023]
[1734515394440,7.17540774,217.25,217.2,1.4501]
[1734515394636,7.17540774,217.25,217.2,3.7526]
[1734515394637,2.3022,217.23,217.2,3.7526]
[1734515395636,7.17540774,217.23,217.18,3.0888]
[1734515395842,7.17540774,217.21,217.11,2.1]
[1734515396041,7.17540774,217.21,217.12,4.85421145]
[1734515396237,2.3027,217.19,217.15,2.303]
[1734515396441,2.1,217.2,217.13,4.85421145]
[1734515396442,7.17540774,217.17,217.13,4.85421145]
[1734515396644,7.17540774,217.17,217.14,4.85421145]
[1734515396946,7.17540774,217.17,217.1,8.76910774]
[1734515397145,7.17540774,217.17,217.11,4.85630063]
[1734515397546,7.17540774,217.17,217.12,4.85630063]
[1734515398044,2.303,217.16,217.13,4.85630063]
[1734515398442,2.303,217.16,217.11,2.3034]
[1734515398637,2.303,217.16,217.12,4.86007376]
[1734515399147,2.3031,217.15,217.13,4.86007376]
[1734515399538,2.3031,217.15,217.11,2.3034]
[1734515399739,2.3031,217.15,217.12,4.85969228]
[1734515399943,2.3031,217.15,217.11,2.3034]
[1734515400437,4.403,217.16,217.12,7.16288759]
[1734515400848,4.403,217.16,217.12,2.3034]
[1734515401045,7.17540774,217.15,217.06,2.1]
[1734515401343,7.17540774,217.15,217.07,15.55986304]
[1734515401541,2.3034,217.13,217.08,2.3038]
[1734515401747,7.17540774,217.11,217.09,4.85897058]
[1734515401941,7.17540774,217.11,217.03,8.64060774]
[1734515401942,2.1,217.1,217.05,8.65260774]
[1734515402143,2.1,217.1,217.09,2.3037]
[1734515402341,2.1,217.14,217.07,7.17540774]
[1734515402547,2.1,217.16,217.09,7.17540774]
[1734515402749,4.403,217.16,217.11,2.3035]
[1734515404446,2.1,217.16,217.09,7.17540774]
[1734515404646,2.1,217.16,217.11,7.17540774]
[1734515405148,2.1,217.16,217.12,4.8567398]
[1734515405454,2.1,217.16,217.11,7.17540774]
[1734515405750,2.1,217.16,217.12,4.85662597]
[1734515405943,2.1,217.16,217.11,7.17540774]
[1734515406343,2.3027,217.19,217.15,2.303]
[1734515406544,2.1,217.23,217.17,7.17540774]
[1734515407554,2.1,217.23,217.18,4.85567498]
[1734515407954,2.1,217.27,217.22,7.17540774]
[1734515409552,4.4018,217.27,217.23,2.3022]
[1734515410753,2.3019,217.26,217.22,2.3023]
[1734515415455,195.80405821,217.31,217.21,7.17540774]
[1734515415661,2.3016,217.29,217.25,2.302]
[1734515416953,2.1,217.3,217.25,7.17540774]
[1734515417153,7.17540774,217.33,217.27,7.17540774]
[1734515417459,9.27540774,217.33,217.27,7.17540774]
[1734515418460,2.3013,217.32,217.28,2.3017]
[1734515421564,2.3013,217.32,217.28,9.47710774]
[1734515423064,2.3014,217.31,217.28,2.3017]
[1734515428568,2.3014,217.31,217.27,7.17540774]
[1734515428876,2.3014,217.31,217.24,10.24510774]
[1734515428877,2.3016,217.29,217.24,10.24510774]
[1734515430571,2.3016,217.29,217.26,2.3019]
[1734515433878,7.17540774,217.31,217.26,7.17540774]
[1734515434077,2.3015,217.3,217.27,2.3018]
[1734515439475,2.3016,217.29,217.27,2.3018]
[1734515440477,2.3015,217.3,217.27,2.3018]
[1734515440874,190.3164097,217.35,217.27,7.17540774]
[1734515441079,2.1,217.34,217.29,7.17540774]
[1734515442680,192.6172097,217.37,217.31,7.17540774]
[1734515442881,2.1,217.36,217.33,7.17540774]
[1734515443182,2.1,217.36,217.34,2.301]
[1734515443578,192.6171097,217.38,217.33,7.17540774]
[1734515443774,380.6328194,217.4,217.33,7.17540774]
[1734515443978,5.51189661,217.43,217.24,3.0697]
[1734515443979,192.4164097,217.42,217.37,7.17540774]
[1734515444174,192.4164097,217.42,217.39,7.17540774]
[1734515444383,2.1,217.42,217.39,7.17540774]
[1734515444584,2.1,217.42,217.35,2.3009]
[1734515444785,2.1,217.42,217.38,7.17540774]
[1734515445180,35.51910038,217.43,217.36,7.17540774]
[1734515445375,2.1,217.42,217.36,7.17540774]
[1734515446084,192.4164097,217.42,217.36,7.17540774]
[1734515446485,194.7166097,217.42,217.38,2.3005]
[1734515446685,7.17540774,217.41,217.34,8.67750774]
[1734515446879,190.3164097,217.4,217.34,8.67750774]
[1734515447482,35.4859638,217.41,217.36,7.17540774]
[1734515447483,190.3164097,217.41,217.36,7.17540774]
[1734515447883,192.4164097,217.42,217.36,7.17540774]
[1734515448684,2.3003,217.41,217.37,2.3007]
[1734515449486,7.17540774,217.41,217.36,7.17540774]
[1734515449687,2.3005,217.4,217.36,9.47620774]
[1734515449886,2.3005,217.4,217.36,7.17540774]
[1734515450488,7.17540774,217.41,217.37,2.3007]
[1734515450489,9.47570774,217.41,217.37,2.3007]
[1734515453087,7.17540774,217.41,217.36,7.17540774]
[1734515453293,2.3005,217.4,217.36,9.47620774]
[1734515453494,7.17540774,217.41,217.36,9.47620774]
[1734515453996,2.3006,217.39,217.35,2.3009]
[1734515454196,2.1,217.42,217.36,7.17540774]
[1734515455297,2.3004,217.41,217.37,2.3007]
[1734515456895,2.3004,217.4,217.37,2.3007]
[1734515458892,2.1,217.41,217.34,1.5021]
[1734515459099,9.27540774,217.41,217.35,2.3009]
[1734515460301,2.3007,217.38,217.35,2.3009]
[1734515460600,9.27540774,217.41,217.34,10.97860774]
[1734515461601,2.3008,217.37,217.34,10.97860774]
[1734515462101,4.4008,217.37,217.34,10.97860774]
[1734515463199,4.4008,217.37,217.34,3.8032]
[1734515463699,4.4008,217.37,217.34,2.3011]
[1734515465002,2.3009,217.36,217.34,2.3011]
[1734515465601,7.17540774,217.35,217.28,1.5889]
[1734515465807,7.17540774,217.35,217.28,8.76430774]
[1734515466201,2.3015,217.31,217.28,8.76430774]
[1734515466502,4.4015,217.31,217.28,8.76430774]
[1734515468808,190.3164097,217.37,217.3,7.17540774]
[1734515468997,2.1,217.36,217.32,7.17540774]
[1734515469404,2.3011,217.34,217.32,7.17540774]
[1734515475503,2.3011,217.34,217.31,2.3014]
[1734515475910,2.1,217.35,217.29,7.17540774]
[1734515476707,2.1,217.35,217.29,9.47700774]
[1734515477413,2.3013,217.33,217.29,9.47700774]
[1734515477613,2.1,217.35,217.29,9.47700774]
[1734515477813,2.1,217.35,217.31,2.3013]
[1734515478018,2.3013,217.32,217.29,7.17540774]
[1734515480417,2.3013,217.32,217.29,9.47700774]
[1734515485019,4.401,217.35,217.32,2.3012]
[1734515485215,4.401,217.35,217.33,7.17540774]
[1734515485418,2.301,217.35,217.33,7.17540774]
[1734515486115,2.1,217.36,217.33,7.17540774]
[1734515486316,4.4009,217.36,217.33,7.17540774]
[1734515490111,190.3164097,217.41,217.33,7.17540774]
[1734515490314,190.3164097,217.41,217.35,9.47630774]
[1734515490315,2.3006,217.38,217.35,9.47630774]
[1734515490815,2.3005,217.39,217.37,7.17540774]
[1734515491415,2.1,217.4,217.37,7.17540774]
[1734515493420,2.1,217.4,217.38,2.3006]
[1734515495919,2.1,217.41,217.38,2.3006]
[1734515498122,2.1,217.41,217.33,7.17540774]
[1734515498123,7.17540774,217.4,217.33,7.17540774]
[1734515498315,197.49181744,217.4,217.33,7.17540774]
[1734515498623,2.1,217.41,217.28,1.5889]
[1734515498624,2.3009,217.36,217.32,2.3012]
[1734515498819,2.1,217.35,217.32,2.3012]
[1734515499523,2.1,217.35,217.32,9.47660774]
[1734515500022,2.1,217.35,217.32,2.3012]
[1734515500222,4.401,217.35,217.32,2.3012]
[1734515500423,4.401,217.35,217.31,7.17540774]
[1734515500726,4.401,217.35,217.31,9.47680774]
[1734515501421,4.401,217.35,217.32,2.3013]
[1734515502617,4.401,217.35,217.31,7.17540774]
[1734515502820,4.401,217.35,217.31,9.47680774]
[1734515503125,2.3011,217.34,217.31,9.47680774]
[1734515503620,2.3011,217.34,217.28,1.5889]
[1734515503621,2.3015,217.3,217.28,1.5889]
[1734515503924,4.4015,217.3,217.28,1.5889]
[1734515507920,2.1,217.3,217.28,1.5889]
[1734515510316,4.4015,217.3,217.28,1.5889]
[1734515513226,7.17540774,217.29,217.12,4.6068]
[1734515513429,7.17540774,217.27,217.22,4.86051903]
[1734515513725,7.17540774,217.27,217.19,1.4904]
[1734515513726,2.1,217.26,217.19,8.66580774]
[1734515513925,9.47750774,217.25,217.21,2.3024]
[1734515514324,9.47750774,217.25,217.22,4.86116831]
[1734515514524,9.47750774,217.25,217.21,2.3024]
[1734515515028,2.3021,217.25,217.22,4.85948128]
[1734515515224,2.3021,217.25,217.21,2.3024]
[1734515515620,2.3021,217.25,217.22,4.85781422]
[1734515515822,2.3021,217.24,217.21,2.3024]
[1734515516029,2.3021,217.24,217.2,2.3025]
[1734515516529,2.3021,217.24,217.21,4.85627465]
[1734515516827,2.3021,217.24,217.2,2.3025]
[1734515517228,2.3021,217.24,217.21,4.85629181]
[1734515517628,2.3021,217.24,217.2,2.3025]
[1734515518229,2.1,217.26,217.19,1.4904]
[1734515518230,7.17540774,217.25,217.19,1.4904]
[1734515518429,7.17540774,217.25,217.19,8.66580774]
[1734515518430,2.3024,217.22,217.19,8.66580774]
[1734515518627,4.4024,217.22,217.18,9.47810774]
[1734515519025,4.4024,217.22,217.19,4.85365815]
[1734515519528,4.4024,217.22,217.18,2.3027]
[1734515520927,2.1,217.22,217.18,2.3027]
[1734515524224,2.1,217.25,217.2,7.17540774]
[1734515524427,2.1,217.25,217.22,7.17540774]
[1734515525335,2.3018,217.27,217.23,2.3022]
[1734515525634,2.1,217.26,217.23,2.3022]
[1734515526134,2.1,217.26,217.25,2.302]
[1734515526431,2.1,217.26,217.23,1.4793]
[1734515526734,4.4019,217.26,217.23,1.4793]
[1734515528228,2.1,217.26,217.21,7.17540774]
[1734515528436,7.17540774,217.25,217.19,7.17540774]
[1734515529033,2.1,217.26,217.19,7.17540774]
[1734515529233,2.1,217.26,217.21,7.17540774]
[1734515530032,2.1,217.26,217.23,2.3021]
[1734515531334,2.3018,217.27,217.23,2.3021]
[1734515531732,2.3019,217.26,217.22,2.3023]
[1734515534737,2.3018,217.27,217.21,7.17540774]
[1734515535043,5.44768989,217.33,217.23,7.17540774]
[1734515535239,2.3015,217.3,217.25,2.3019]
[1734515536338,2.3015,217.3,217.26,2.3019]
[1734515536939,9.47680774,217.31,217.27,2.3018]
[1734515537645,2.3015,217.3,217.27,2.3018]
[1734515537841,2.3015,217.3,217.26,2.3019]
[1734515539142,2.3015,217.3,217.24,7.17540774]
[1734515539338,9.47680774,217.31,217.27,2.3018]
[1734515540844,7.17540774,217.29,217.25,2.302]
[1734515541841,9.47710774,217.29,217.25,2.302]
[1734515543741,9.47710774,217.29,217.23,7.17540774]
[1734515543943,2.3017,217.29,217.26,2.3019]
[1734515549150,9.47710774,217.29,217.26,2.3019]
[1734515553550,7.17540774,217.29,217.24,2.302]
[1734515553752,7.17540774,217.31,217.25,12.03755022]
[1734515553954,190.3164097,217.36,217.27,7.17540774]
[1734515554157,9.47650774,217.34,217.29,2.3016]
[1734515554359,9.47650774,217.34,217.27,7.17540774]
[1734515554561,9.47650774,217.34,217.28,4.86225388]
[1734515554861,9.47650774,217.34,217.29,4.86225388]
[1734515555057,9.47650774,217.34,217.27,7.17540774]
[1734515555258,2.3012,217.33,217.3,2.3014]
[1734515556556,7.17540774,217.32,217.3,2.3014]
[1734515558260,9.47670774,217.32,217.29,2.3016]
[1734515558766,2.3014,217.31,217.26,1.5343]
[1734515559154,2.3014,217.31,217.27,4.86109628]
[1734515559359,2.3014,217.31,217.28,4.86109628]
[1734515559564,2.3014,217.31,217.28,2.3016]
[1734515564271,7.17540774,217.32,217.26,1.5343]
[1734515564470,9.47670774,217.32,217.29,2.3016]
[1734515564672,7.17540774,217.32,217.27,4.8611366]
[1734515564969,2.3014,217.31,217.28,7.1627366]
[1734515565169,2.3014,217.31,217.28,2.3016]
[1734515569276,7.17540774,217.33,217.26,1.5343]
[1734515569474,7.17540774,217.33,217.28,2.3016]
[1734515569475,2.3013,217.32,217.28,2.3016]
[1734515569877,2.3013,217.32,217.29,4.86549306]
[1734515570076,2.3013,217.32,217.26,1.5343]
[1734515570279,2.3013,217.32,217.27,4.86657304]
[1734515570577,2.3013,217.32,217.28,4.86657304]
[1734515570777,2.3013,217.32,217.29,4.86657304]
[1734515570982,2.3013,217.32,217.26,1.5343]
[1734515571178,2.3013,217.32,217.27,4.86650582]
[1734515571576,2.3013,217.32,217.28,7.16810582]
[1734515571881,2.3013,217.32,217.29,4.86650582]
[1734515572180,2.3013,217.32,217.28,2.3016]
[1734515572383,2.3013,217.32,217.26,1.5343]
[1734515572681,2.3013,217.32,217.29,2.3016]
[1734515573774,9.47670774,217.32,217.29,2.3016]
[1734515574775,7.17540774,217.32,217.26,1.5343]
[1734515574976,7.17540774,217.3,217.21,1.4744]
[1734515575181,7.17540774,217.3,217.27,4.86852301]
[1734515575381,7.17540774,217.28,217.21,8.64980774]
[1734515575681,7.17540774,217.28,217.25,2.302]
[1734515576183,7.17540774,217.26,217.22,2.3023]
[1734515576478,7.17540774,217.26,217.21,1.4744]
[1734515576685,2.3019,217.27,217.23,2.3021]
[1734515576978,2.3019,217.27,217.24,4.86926736]
[1734515577181,2.3019,217.27,217.25,4.86926736]
[1734515577382,2.3019,217.27,217.26,4.86926736]
[1734515577780,7.17540774,217.28,217.18,7.17540774]
[1734515577977,7.17540774,217.24,217.21,2.3023]
[1734515578283,7.17540774,217.24,217.22,4.87005767]
[1734515578687,7.17540774,217.24,217.23,4.87005767]
[1734515579684,9.47750774,217.24,217.23,4.87005767]
[1734515581582,9.47750774,217.24,217.2,2.3025]
[1734515581884,2.3022,217.23,217.21,4.86772099]
[1734515582185,2.3022,217.23,217.22,4.86772099]
[1734515584588,2.3022,217.23,217.19,2.3026]
[1734515584889,2.3022,217.23,217.2,4.86461089]
[1734515585185,2.3022,217.23,217.21,4.86461089]
[1734515585387,2.3022,217.23,217.19,2.3026]
[1734515585586,2.3022,217.23,217.2,4.86376942]
[1734515586087,2.3022,217.23,217.21,4.86376942]
[1734515586484,2.3022,217.23,217.19,2.3026]
[1734515586688,2.3022,217.23,217.2,4.86300855]
[1734515587087,2.3022,217.23,217.19,2.3026]
[1734515587088,2.3022,217.23,217.21,4.86300855]
[1734515587484,2.3022,217.23,217.19,2.3026]
[1734515587783,2.3022,217.23,217.2,4.86252878]
[1734515587986,2.3022,217.23,217.21,4.86252878]
[1734515588388,2.3022,217.23,217.19,2.3026]
[1734515588689,2.3022,217.23,217.2,4.86214598]
[1734515589182,2.3022,217.23,217.19,2.3026]
[1734515589486,2.3022,217.23,217.2,4.86216987]
[1734515589686,2.3022,217.23,217.19,2.3026]
[1734515590281,7.17540774,217.22,217.2,4.86139628]
[1734515590484,7.17540774,217.22,217.19,2.3026]
[1734515590884,7.17540774,217.22,217.2,4.8606936]
[1734515591185,7.17540774,217.22,217.2,2.3025]
[1734515591587,2.3023,217.23,217.2,2.3025]
[1734515591787,190.3164097,217.31,217.17,8.74080774]
[1734515591984,7.17540774,217.26,217.19,7.17540774]
[1734515592289,7.17540774,217.3,217.23,7.17540774]
[1734515592597,7.17540774,217.34,217.25,7.17540774]
[1734515592889,2.3013,217.33,217.26,4.86007351]
[1734515593086,2.3013,217.33,217.27,4.86007351]
[1734515593282,2.3013,217.33,217.28,4.86007351]
[1734515593479,190.3164097,217.39,217.28,12.03548125]
[1734515593683,7.17540774,217.37,217.3,7.17540774]
[1734515594386,9.47620774,217.37,217.32,2.3013]
[1734515599289,9.47620774,217.37,217.3,7.17540774]
[1734515599290,7.17540774,217.37,217.3,7.17540774]
[1734515599487,190.3164097,217.43,217.34,7.17540774]
[1734515599690,1.4746,217.46,217.34,7.17540774]
[1734515599691,7.17540774,217.41,217.34,7.17540774]
[1734515600186,7.17540774,217.41,217.35,1.4694]
[1734515600488,191.7910097,217.46,217.37,2.3007]
[1734515600489,2.3002,217.42,217.37,2.3007]
[1734515600689,1.4746,217.46,217.35,1.4694]
[1734515600884,7.17540774,217.41,217.35,1.4694]
[1734515601086,2.3001,217.43,217.35,1.4694]
[1734515601287,7.17540774,217.41,217.35,1.4694]
[1734515601482,7.17540774,217.41,217.38,2.3005]
[1734515602589,2.3,217.44,217.39,2.3005]
[1734515602786,7.17540774,217.42,217.39,2.3005]
[1734515602983,7.17540774,217.42,217.36,7.17540774]
[1734515603180,2.2999,217.45,217.41,2.3003]
[1734515603381,7.17540774,217.44,217.41,2.3003]
[1734515603686,7.17540774,217.42,217.36,7.17540774]
[1734515604790,2.3,217.44,217.36,7.17540774]
[1734515604985,9.47540774,217.44,217.36,7.17540774]
[1734515605391,9.47540774,217.44,217.39,2.3005]
[1734515607489,191.8171097,217.51,217.4,7.17540774]
[1734515607490,190.3164097,217.51,217.4,7.17540774]
[1734515607691,7.17540774,217.47,217.4,7.17540774]
[1734515608393,7.17540774,217.45,217.38,7.17540774]
[1734515608795,7.17540774,217.45,217.41,2.3002]
[1734515612491,9.47520774,217.46,217.38,7.17540774]
[1734515613197,9.47520774,217.46,217.42,2.3002]
[1734515617402,9.47520774,217.46,217.43,2.3001]
[1734515618399,5.54743205,217.5,217.4,7.17540774]
[1734515618704,7.17540774,217.47,217.44,2.2999]
[1734515620202,9.47510774,217.47,217.44,2.2999]
[1734515620403,7.17540774,217.47,217.44,2.2999]
[1734515623300,7.17540774,217.47,217.4,7.17540774]
[1734515623504,7.17540774,217.47,217.42,2.3001]
[1734515623809,7.17540774,217.47,217.4,7.17540774]
[1734515624109,2.2998,217.46,217.43,2.3001]
[1734515638516,197.49181744,217.47,217.41,7.17540774]
[1734515638517,199.79161744,217.47,217.41,7.17540774]
[1734515639512,199.79161744,217.47,217.43,2.3001]
[1734515641117,192.6162097,217.47,217.43,2.3001]
[1734515641614,192.6162097,217.47,217.43,2.3]
[1734515642616,192.6162097,217.47,217.44,2.3]
[1734515643112,2.2998,217.47,217.44,2.3]
[1734515646508,192.6162097,217.47,217.44,2.3]
[1734515646817,2.2998,217.46,217.43,2.3001]
[1734515647515,190.3164097,217.47,217.35,4.4289]
[1734515647715,7.17540774,217.46,217.4,7.17540774]
[1734515648018,190.3164097,217.45,217.41,4.87244574]
[1734515648219,190.3164097,217.43,217.38,7.17540774]
[1734515648413,190.3164097,217.43,217.35,4.4289]
[1734515648611,218.71869949,217.42,217.39,4.87303654]
[1734515648813,225.89410723,217.42,217.35,4.4289]
[1734515649008,192.6169097,217.4,217.36,7.17419042]
[1734515649207,192.6169097,217.4,217.37,4.87339042]
[1734515649415,192.6169097,217.4,217.38,4.87339042]
[1734515649611,190.3164097,217.39,217.38,4.87339042]
[1734515649912,190.3164097,217.39,217.36,2.3008]
[1734515650309,192.6169097,217.4,217.37,4.86899321]
[1734515650711,192.6169097,217.4,217.36,2.3008]
[1734515650913,2.3005,217.4,217.36,2.3008]
[1734515651112,2.3005,217.4,217.37,4.86898718]
[1734515651519,2.3005,217.4,217.36,2.3008]
[1734515652218,2.3005,217.4,217.37,4.86785682]
[1734515652419,2.3005,217.4,217.36,2.3008]
[1734515652919,2.3005,217.4,217.37,4.86666678]
[1734515653116,2.3005,217.4,217.36,2.3008]
[1734515654421,2.3005,217.4,217.37,7.17540774]
[1734515654721,2.3005,217.4,217.37,9.47610774]
[1734515655322,2.3005,217.4,217.37,2.3007]
[1734515662630,7.17540774,217.41,217.35,2.9549]
[1734515662834,7.17540774,217.39,217.35,1.4694]
[1734515663434,2.3007,217.38,217.35,1.4694]
[1734515665036,2.3009,217.36,217.33,2.3011]
[1734515665233,7.17540774,217.39,217.34,4.85908761]
[1734515665439,7.17540774,217.37,217.3,57.95177469]
[1734515665639,7.17540774,217.37,217.3,7.17540774]
[1734515665943,2.3011,217.35,217.31,4.85949044]
[1734515666643,2.3011,217.35,217.3,9.47680774]
[1734515667934,7.17540774,217.37,217.3,9.47680774]
[1734515668138,2.3011,217.34,217.31,4.85850033]
[1734515668741,2.3011,217.34,217.31,7.15990033]
[1734515668942,7.17540774,217.37,217.31,4.85850033]
[1734515669140,7.17540774,217.35,217.31,4.85850033]
[1734515669536,2.3013,217.32,217.29,8.66770774]
[1734515670439,7.17540774,217.35,217.29,8.66770774]
[1734515670640,7.17540774,217.33,217.25,7.17540774]
[1734515670845,7.17540774,217.31,217.24,48.06309579]
[1734515671139,380.6328194,217.38,217.25,4.85972963]
[1734515671140,7.17540774,217.27,217.25,4.85972963]
[1734515671438,7.17540774,217.27,217.2,2.3025]
[1734515671439,7.17540774,217.27,217.2,9.47790774]
[1734515671640,2.3021,217.25,217.21,4.85421404]
[1734515671842,2.3021,217.25,217.2,9.47790774]
[1734515673838,7.17540774,217.27,217.19,1.496]
[1734515674143,7.17540774,217.23,217.16,7.17540774]
[1734515676346,7.17540774,217.23,217.17,2.3029]
[1734515677550,2.3025,217.21,217.17,2.3029]
[1734515677943,7.17540774,217.23,217.17,7.17540774]
[1734515678245,2.3025,217.21,217.17,7.17540774]
[1734515678647,2.3025,217.21,217.16,2.303]
[1734515678842,2.3025,217.21,217.14,52.76203477]
[1734515678843,2.3027,217.19,217.14,52.76203477]
[1734515679044,2.3027,217.19,217.14,59.93744251]
[1734515679445,2.3027,217.19,217.14,2.3032]
[1734515679446,9.47810774,217.19,217.14,2.3032]
[1734515680944,7.17540774,217.19,217.13,3.0061]
[1734515681150,2.3029,217.17,217.13,1.5495]
[1734515681849,2.3029,217.17,217.13,3.8528]
[1734515683655,2.3029,217.17,217.13,1.5495]
[1734515688553,2.303,217.16,217.13,1.5495]
[1734515688951,7.17540774,217.19,217.13,1.5495]
[1734515689159,2.3032,217.15,217.13,1.5495]
[1734515689356,7.17540774,217.17,217.13,1.5495]
[1734515690459,2.303,217.16,217.13,1.5495]
[1734515693559,7.17540774,217.17,217.13,1.5495]
[1734515693762,2.3031,217.15,217.13,1.5495]
[1734515695262,2.3033,217.14,217.1,2.3036]
[1734515695463,7.17540774,217.16,217.09,7.17540774]
[1734515695858,9.47850774,217.16,217.11,2.3034]
[1734515696363,7.17540774,217.16,217.11,2.3034]
[1734515696564,2.3032,217.15,217.11,2.3034]
[1734515697869,7.17540774,217.16,217.11,2.3034]
[1734515698065,2.3032,217.14,217.11,2.3034]
[1734515701265,2.3031,217.16,217.12,2.3033]
[1734515702760,5.42526219,217.25,217.13,7.17540774]
[1734515702963,5.42526219,217.25,217.17,7.17540774]
[1734515702964,7.17540774,217.24,217.17,7.17540774]
[1734515703162,7.17540774,217.26,217.19,7.17540774]
[1734515704271,7.17540774,217.22,217.16,7.17540774]
[1734515704470,259.39606728,217.3,217.13,7.17540774]
[1734515704471,7.17540774,217.2,217.13,7.17540774]
[1734515704669,2.3027,217.19,217.15,2.303]
[1734515705467,9.47800774,217.2,217.16,2.3029]
[1734515705967,7.17540774,217.2,217.13,7.17540774]
[1734515706470,7.17540774,217.2,217.14,4.8031058]
[1734515706666,7.17540774,217.2,217.13,7.17540774]
[1734515707269,7.17540774,217.2,217.14,4.80735136]
[1734515707469,9.47800774,217.2,217.16,2.3029]
[1734515709871,2.3027,217.19,217.16,2.3029]